[Event "Late-Titled-Tuesday-Blitz-June-04-2024"]
[Site "Chess.com"]
[Date "2024.06.04"]
[Round "5"]
[White "BardArtem"]
[Black "Love7Unicorn"]
[Result "1-0"]
[WhiteElo "2730"]
[BlackElo "2557"]
[TimeControl "180+1"]
[EndTime "14:54:21 PDT"]
[Termination "BardArtem won by resignation"]

1. e4 {[%clk 0:03:00.9]} 1... c5 {[%clk 0:02:56]} 2. c3 {[%clk 0:02:58.1]} 2...
d5 {[%clk 0:02:55.3]} 3. exd5 {[%clk 0:02:59]} 3... Qxd5 {[%clk 0:02:55.9]} 4.
d4 {[%clk 0:02:58.4]} 4... Nc6 {[%clk 0:02:56.3]} 5. Nf3 {[%clk 0:02:58.4]} 5...
Bf5 {[%clk 0:02:56.4]} 6. Be3 {[%clk 0:02:58.1]} 6... Nf6 {[%clk 0:02:46.6]} 7.
Qb3 {[%clk 0:02:57.7]} 7... Qxb3 {[%clk 0:02:29.5]} 8. axb3 {[%clk 0:02:58.6]}
8... cxd4 {[%clk 0:02:29.9]} 9. Nxd4 {[%clk 0:02:58.5]} 9... Nxd4 {[%clk
0:01:59.7]} 10. Bxd4 {[%clk 0:02:59.4]} 10... a6 {[%clk 0:01:54.1]} 11. Na3
{[%clk 0:02:50.6]} 11... Rc8 {[%clk 0:01:45.8]} 12. Nc4 {[%clk 0:02:39.2]} 12...
e6 {[%clk 0:01:45.7]} 13. Be2 {[%clk 0:02:32.2]} 13... Be4 {[%clk 0:01:38.9]}
14. O-O {[%clk 0:02:26.6]} 14... Bc5 {[%clk 0:01:20.6]} 15. Bxc5 {[%clk
0:02:15.3]} 15... Rxc5 {[%clk 0:01:19.9]} 16. b4 {[%clk 0:02:16]} 16... Rc7
{[%clk 0:01:17.5]} 17. b5 {[%clk 0:02:12.9]} 17... Bd5 {[%clk 0:00:50.1]} 18.
bxa6 {[%clk 0:02:07]} 18... bxa6 {[%clk 0:00:41.6]} 19. Rxa6 {[%clk 0:02:05.6]}
19... Ke7 {[%clk 0:00:10.8]} 20. Ne3 {[%clk 0:02:04]} 20... Bc6 {[%clk
0:00:07.7]} 21. Rfa1 {[%clk 0:01:59.7]} 21... Rb8 {[%clk 0:00:07]} 22. b4 {[%clk
0:01:59.6]} 22... Nd5 {[%clk 0:00:04.7]} 23. Ra7 {[%clk 0:01:54.9]} 23... Kd8
{[%clk 0:00:02.9]} 24. Nxd5 {[%clk 0:01:52.3]} 24... exd5 {[%clk 0:00:02.9]} 25.
Rxc7 {[%clk 0:01:51.8]} 25... Kxc7 {[%clk 0:00:03.8]} 26. Ra7+ {[%clk
0:01:51.9]} 26... Rb7 {[%clk 0:00:04.2]} 27. Rxb7+ {[%clk 0:01:52.2]} 27... Bxb7
{[%clk 0:00:04.9]} 28. f4 {[%clk 0:01:50.3]} 28... Kd6 {[%clk 0:00:04.7]} 29.
Kf2 {[%clk 0:01:49.9]} 29... Bc6 {[%clk 0:00:02.9]} 30. Ke3 {[%clk 0:01:50]}
30... Ba4 {[%clk 0:00:02.6]} 31. Kd4 {[%clk 0:01:48.4]} 31... Bb3 {[%clk
0:00:02.9]} 32. c4 {[%clk 0:01:42.1]} 32... dxc4 {[%clk 0:00:01.5]} 33. Bxc4
{[%clk 0:01:43]} 33... Ba4 {[%clk 0:00:01.6]} 34. Bxf7 {[%clk 0:01:43.3]} 34...
Bc6 {[%clk 0:00:02.3]} 35. g3 {[%clk 0:01:43.5]} 35... Bf3 {[%clk 0:00:02.4]}
36. Bc4 {[%clk 0:01:42.6]} 36... h6 {[%clk 0:00:02.5]} 37. Bd3 {[%clk
0:01:43.2]} 37... Kc7 {[%clk 0:00:02.7]} 38. Kc5 {[%clk 0:01:43.1]} 38... Bc6
{[%clk 0:00:02.3]} 39. b5 {[%clk 0:01:43.5]} 39... Bf3 {[%clk 0:00:02.2]} 40.
b6+ {[%clk 0:01:44.4]} 40... Kb7 {[%clk 0:00:02.7]} 41. Bc4 {[%clk 0:01:44.9]}
41... Bg4 {[%clk 0:00:03.3]} 42. Bd5+ {[%clk 0:01:45.3]} 42... Kb8 {[%clk
0:00:04]} 43. Kd6 {[%clk 0:01:46]} 43... g5 {[%clk 0:00:04.5]} 44. fxg5 {[%clk
0:01:46.1]} 44... hxg5 {[%clk 0:00:05.4]} 45. Ke5 {[%clk 0:01:44.7]} 45... Bc8
{[%clk 0:00:03.5]} 46. Kf6 {[%clk 0:01:44.4]} 46... g4 {[%clk 0:00:03.5]} 47.
Kg5 {[%clk 0:01:44.9]} 47... Bd7 {[%clk 0:00:02.1]} 48. Be4 {[%clk 0:01:44.7]}
48... Be6 {[%clk 0:00:01]} 49. Bf5 {[%clk 0:01:44.8]} 49... Bf7 {[%clk
0:00:01.7]} 50. Bxg4 {[%clk 0:01:39.1]} 50... Kb7 {[%clk 0:00:02.1]} 51. h4
{[%clk 0:01:39.8]} 51... Kxb6 {[%clk 0:00:02.5]} 52. h5 {[%clk 0:01:40.5]} 52...
Kc6 {[%clk 0:00:02.1]} 53. h6 {[%clk 0:01:41.1]} 53... Bg8 {[%clk 0:00:02.6]}
54. Kf6 {[%clk 0:01:41.2]} 54... Kd6 {[%clk 0:00:02.2]} 55. Kg7 {[%clk
0:01:41.7]} 1-0

[Event "Late-Titled-Tuesday-Blitz-June-04-2024"]
[Site "Chess.com"]
[Date "2024.06.04"]
[Round "5"]
[White "Quattroporte300"]
[Black "yaguigor"]
[Result "0-1"]
[WhiteElo "2447"]
[BlackElo "2619"]
[TimeControl "180+1"]
[EndTime "14:54:21 PDT"]
[Termination "yaguigor won on time"]

1. e4 {[%clk 0:03:00.9]} 1... e5 {[%clk 0:02:58.3]} 2. Nf3 {[%clk 0:03:00]} 2...
Nc6 {[%clk 0:02:57.9]} 3. Bc4 {[%clk 0:03:00.5]} 3... Bc5 {[%clk 0:02:56.7]} 4.
c3 {[%clk 0:03:00.7]} 4... Nf6 {[%clk 0:02:55.8]} 5. d3 {[%clk 0:03:00.8]} 5...
O-O {[%clk 0:02:54.3]} 6. O-O {[%clk 0:03:00.8]} 6... d5 {[%clk 0:02:47.6]} 7.
exd5 {[%clk 0:03:00.1]} 7... Nxd5 {[%clk 0:02:48.4]} 8. h3 {[%clk 0:03:00.2]}
8... Nb6 {[%clk 0:02:45.3]} 9. Bb5 {[%clk 0:02:58.1]} 9... Bd6 {[%clk
0:02:36.9]} 10. Re1 {[%clk 0:02:55.5]} 10... Qf6 {[%clk 0:02:33.5]} 11. Bxc6
{[%clk 0:02:49.1]} 11... bxc6 {[%clk 0:02:32.7]} 12. d4 {[%clk 0:02:49.4]} 12...
exd4 {[%clk 0:02:30]} 13. Qxd4 {[%clk 0:02:46.1]} 13... Qxd4 {[%clk 0:02:25.1]}
14. Nxd4 {[%clk 0:02:45.5]} 14... Bd7 {[%clk 0:02:13.9]} 15. b3 {[%clk
0:02:31.7]} 15... c5 {[%clk 0:02:13]} 16. Nf3 {[%clk 0:02:28.9]} 16... Rfe8
{[%clk 0:02:11.5]} 17. Bb2 {[%clk 0:02:07.6]} 17... Rxe1+ {[%clk 0:02:02.7]} 18.
Nxe1 {[%clk 0:02:07.4]} 18... a5 {[%clk 0:01:57.2]} 19. Nd2 {[%clk 0:02:03.1]}
19... a4 {[%clk 0:01:55.5]} 20. c4 {[%clk 0:01:38.2]} 20... Bc6 {[%clk
0:01:51.1]} 21. Nc2 {[%clk 0:01:31]} 21... f6 {[%clk 0:01:46.9]} 22. Kf1 {[%clk
0:01:27.3]} 22... Nd7 {[%clk 0:01:42.5]} 23. Bc3 {[%clk 0:01:17.9]} 23... Ne5
{[%clk 0:01:34.2]} 24. Ne1 {[%clk 0:00:54.4]} 24... g5 {[%clk 0:01:27.1]} 25. f3
{[%clk 0:00:53.4]} 25... h5 {[%clk 0:01:25.3]} 26. Ke2 {[%clk 0:00:47.2]} 26...
Re8 {[%clk 0:01:23.1]} 27. Kf1 {[%clk 0:00:35.8]} 27... Kf7 {[%clk 0:01:19.1]}
28. Rd1 {[%clk 0:00:25]} 28... Ng6 {[%clk 0:01:11.9]} 29. Nd3 {[%clk 0:00:21.3]}
29... Nh4 {[%clk 0:00:58.9]} 30. Nf2 {[%clk 0:00:15.9]} 30... Nf5 {[%clk
0:00:56.3]} 31. Re1 {[%clk 0:00:08.6]} 31... Ng3+ {[%clk 0:00:55.3]} 0-1

[Event "Late-Titled-Tuesday-Blitz-June-04-2024"]
[Site "Chess.com"]
[Date "2024.06.04"]
[Round "5"]
[White "A4RookA3"]
[Black "Kostukov_Alex"]
[Result "1-0"]
[WhiteElo "2512"]
[BlackElo "2305"]
[TimeControl "180+1"]
[EndTime "14:54:23 PDT"]
[Termination "A4RookA3 won by resignation"]

1. Nc3 {[%clk 0:03:00.9]} 1... g6 {[%clk 0:03:00]} 2. d4 {[%clk 0:02:58.6]} 2...
Bg7 {[%clk 0:03:00.2]} 3. e4 {[%clk 0:02:59.2]} 3... d6 {[%clk 0:02:59.7]} 4.
Be3 {[%clk 0:02:59.4]} 4... e5 {[%clk 0:02:59.6]} 5. dxe5 {[%clk 0:02:57.4]}
5... dxe5 {[%clk 0:03:00.5]} 6. Qxd8+ {[%clk 0:02:56.6]} 6... Kxd8 {[%clk
0:03:01.4]} 7. O-O-O+ {[%clk 0:02:57]} 7... Nd7 {[%clk 0:03:00.5]} 8. Bc4 {[%clk
0:02:57.3]} 8... f6 {[%clk 0:03:00.4]} 9. f4 {[%clk 0:02:55.8]} 9... exf4 {[%clk
0:02:58]} 10. Bxf4 {[%clk 0:02:56.7]} 10... Bh6 {[%clk 0:02:58.6]} 11. Bxh6
{[%clk 0:02:55.3]} 11... Nxh6 {[%clk 0:02:59.5]} 12. Nf3 {[%clk 0:02:54.8]}
12... c6 {[%clk 0:02:49.4]} 13. e5 {[%clk 0:02:50.1]} 13... fxe5 {[%clk
0:02:48.1]} 14. Nxe5 {[%clk 0:02:51]} 14... Kc7 {[%clk 0:02:48.6]} 15. Rhe1
{[%clk 0:02:45.9]} 15... Nxe5 {[%clk 0:02:42.5]} 16. Rxe5 {[%clk 0:02:46.8]}
16... Nf5 {[%clk 0:02:16.2]} 17. Ne4 {[%clk 0:02:34.5]} 17... Bd7 {[%clk
0:01:49]} 18. g4 {[%clk 0:02:07.6]} 18... Ne3 {[%clk 0:01:39.5]} 19. Rxd7+
{[%clk 0:01:43.2]} 19... Kxd7 {[%clk 0:01:33.9]} 20. Nf6+ {[%clk 0:01:43.8]}
20... Kc7 {[%clk 0:01:25]} 21. Rxe3 {[%clk 0:01:44.7]} 21... g5 {[%clk
0:01:13.5]} 22. Re7+ {[%clk 0:01:41]} 22... Kb6 {[%clk 0:01:12.2]} 23. Nxh7
{[%clk 0:01:36.4]} 23... Rae8 {[%clk 0:01:06.3]} 24. Rxe8 {[%clk 0:01:34.6]}
24... Rxe8 {[%clk 0:01:07.2]} 25. Nxg5 {[%clk 0:01:35.1]} 25... Rh8 {[%clk
0:01:02.1]} 26. Nf3 {[%clk 0:01:33.1]} 26... Rh3 {[%clk 0:00:58.6]} 27. Be2
{[%clk 0:01:33.3]} 27... Kc5 {[%clk 0:00:55.4]} 28. Kd2 {[%clk 0:01:20.3]} 28...
Kd6 {[%clk 0:00:54.8]} 29. Ke3 {[%clk 0:01:16.6]} 29... Ke6 {[%clk 0:00:53.3]}
30. Kf2 {[%clk 0:01:14.7]} 30... Kf6 {[%clk 0:00:53]} 31. Kg2 {[%clk 0:01:04.7]}
31... Rh8 {[%clk 0:00:51.4]} 32. h4 {[%clk 0:01:04.9]} 32... a5 {[%clk
0:00:49.7]} 33. Kg3 {[%clk 0:01:03.1]} 33... a4 {[%clk 0:00:49.1]} 34. h5 {[%clk
0:01:01.2]} 34... a3 {[%clk 0:00:49.4]} 35. bxa3 {[%clk 0:01:01.6]} 35... Ra8
{[%clk 0:00:48]} 36. g5+ {[%clk 0:01:02.2]} 36... Kg7 {[%clk 0:00:43.5]} 37. h6+
{[%clk 0:01:02.7]} 37... Kg6 {[%clk 0:00:40.1]} 38. Bd3+ {[%clk 0:01:02.5]}
38... Kh5 {[%clk 0:00:40.5]} 39. h7 {[%clk 0:01:01.1]} 39... b5 {[%clk
0:00:34.8]} 40. Ne5 {[%clk 0:00:57.8]} 40... Kxg5 {[%clk 0:00:32.5]} 41. h8=Q
{[%clk 0:00:57.9]} 41... Rxh8 {[%clk 0:00:25.6]} 42. Nf7+ {[%clk 0:00:57.8]}
42... Kf6 {[%clk 0:00:25.8]} 43. Nxh8 {[%clk 0:00:58.7]} 43... Ke5 {[%clk
0:00:26.7]} 44. Nf7+ {[%clk 0:00:58]} 44... Kd4 {[%clk 0:00:26.2]} 45. Nd8
{[%clk 0:00:56.7]} 45... c5 {[%clk 0:00:26.2]} 46. Bxb5 {[%clk 0:00:57.1]} 46...
Kc3 {[%clk 0:00:26.5]} 47. a4 {[%clk 0:00:56.6]} 47... Kb4 {[%clk 0:00:26.3]}
48. c4 {[%clk 0:00:56.8]} 1-0

[Event "Late-Titled-Tuesday-Blitz-June-04-2024"]
[Site "Chess.com"]
[Date "2024.06.04"]
[Round "5"]
[White "scrambleyourbrain"]
[Black "Fore_Man"]
[Result "0-1"]
[WhiteElo "2371"]
[BlackElo "2233"]
[TimeControl "180+1"]
[EndTime "14:54:23 PDT"]
[Termination "Fore_Man won by checkmate"]

1. e4 {[%clk 0:03:00.9]} 1... Nc6 {[%clk 0:02:48.7]} 2. d4 {[%clk 0:03:00.5]}
2... e5 {[%clk 0:02:37.8]} 3. d5 {[%clk 0:03:00.4]} 3... Nce7 {[%clk 0:02:37.8]}
4. Nf3 {[%clk 0:02:59.8]} 4... Ng6 {[%clk 0:02:38.1]} 5. c4 {[%clk 0:02:59.1]}
5... Bc5 {[%clk 0:02:38.2]} 6. Nc3 {[%clk 0:02:58.8]} 6... d6 {[%clk 0:02:38.6]}
7. a3 {[%clk 0:02:58.1]} 7... a5 {[%clk 0:02:38.5]} 8. Be2 {[%clk 0:02:55.8]}
8... Nf6 {[%clk 0:02:38.4]} 9. O-O {[%clk 0:02:53.8]} 9... O-O {[%clk
0:02:38.5]} 10. Be3 {[%clk 0:02:53]} 10... Bxe3 {[%clk 0:02:30.8]} 11. fxe3
{[%clk 0:02:53]} 11... Ng4 {[%clk 0:02:31.7]} 12. Qd2 {[%clk 0:02:50.8]} 12...
Nh4 {[%clk 0:02:31.8]} 13. h3 {[%clk 0:02:47.3]} 13... Nxf3+ {[%clk 0:02:31.7]}
14. Bxf3 {[%clk 0:02:47.5]} 14... Nh6 {[%clk 0:02:32.6]} 15. b4 {[%clk
0:02:45.5]} 15... axb4 {[%clk 0:02:32.3]} 16. axb4 {[%clk 0:02:45.5]} 16... Rxa1
{[%clk 0:02:33.2]} 17. Rxa1 {[%clk 0:02:45]} 17... Qg5 {[%clk 0:02:34.1]} 18.
Kh2 {[%clk 0:02:43.2]} 18... Qh4 {[%clk 0:02:31.1]} 19. Qe1 {[%clk 0:02:40.5]}
19... Qg5 {[%clk 0:02:27.8]} 20. Qd2 {[%clk 0:02:34.4]} 20... f5 {[%clk
0:02:27.5]} 21. exf5 {[%clk 0:02:34.2]} 21... Nxf5 {[%clk 0:02:28.4]} 22. Re1
{[%clk 0:02:21]} 22... Qg3+ {[%clk 0:02:18.5]} 23. Kh1 {[%clk 0:02:21.1]} 23...
Nh4 {[%clk 0:02:19]} 24. Ne4 {[%clk 0:02:12.7]} 24... Nxf3 {[%clk 0:02:18]} 25.
gxf3 {[%clk 0:02:11.1]} 25... Qxh3+ {[%clk 0:02:14.2]} 26. Qh2 {[%clk
0:02:10.9]} 26... Qxf3+ {[%clk 0:02:14.3]} 27. Qg2 {[%clk 0:02:11.2]} 27... Qh5+
{[%clk 0:02:07.9]} 28. Qh2 {[%clk 0:02:07.8]} 28... Bh3 {[%clk 0:02:04.9]} 29.
Ng3 {[%clk 0:01:30]} 29... Qf3+ {[%clk 0:01:45]} 30. Kg1 {[%clk 0:01:29.2]}
30... Bg4 {[%clk 0:01:44.9]} 31. Qg2 {[%clk 0:01:22.2]} 31... Qxg2+ {[%clk
0:01:27.3]} 32. Kxg2 {[%clk 0:01:22.4]} 32... h5 {[%clk 0:01:22.1]} 33. Ra1
{[%clk 0:01:13.5]} 33... h4 {[%clk 0:01:18.8]} 34. Nf1 {[%clk 0:01:13.4]} 34...
Be2 {[%clk 0:01:15.4]} 35. Nd2 {[%clk 0:01:13]} 35... g5 {[%clk 0:01:10.7]} 36.
Ra7 {[%clk 0:01:12.2]} 36... g4 {[%clk 0:00:28.8]} 37. Rxb7 {[%clk 0:01:11.2]}
37... g3 {[%clk 0:00:29.3]} 38. Kh3 {[%clk 0:00:57.9]} 38... Rf2 {[%clk
0:00:25]} 39. Rb8+ {[%clk 0:00:36]} 39... Kg7 {[%clk 0:00:24.9]} 40. Rc8 {[%clk
0:00:36.4]} 40... Rh2# {[%clk 0:00:24.2]} 0-1

[Event "Late-Titled-Tuesday-Blitz-June-04-2024"]
[Site "Chess.com"]
[Date "2024.06.04"]
[Round "5"]
[White "Heinza9"]
[Black "Michalczak"]
[Result "0-1"]
[WhiteElo "2350"]
[BlackElo "2527"]
[TimeControl "180+1"]
[EndTime "14:54:25 PDT"]
[Termination "Michalczak won by checkmate"]

1. c4 {[%clk 0:03:00.9]} 1... e5 {[%clk 0:02:58.5]} 2. Nc3 {[%clk 0:03:00.1]}
2... Nf6 {[%clk 0:02:58.1]} 3. Nf3 {[%clk 0:03:00.6]} 3... e4 {[%clk 0:02:57.9]}
4. Ng5 {[%clk 0:03:00.3]} 4... c6 {[%clk 0:02:58.2]} 5. Ngxe4 {[%clk 0:02:59.7]}
5... Nxe4 {[%clk 0:02:58.4]} 6. Nxe4 {[%clk 0:03:00.6]} 6... d5 {[%clk
0:02:58.6]} 7. cxd5 {[%clk 0:03:00.5]} 7... cxd5 {[%clk 0:02:59.5]} 8. Ng3
{[%clk 0:03:00.6]} 8... h5 {[%clk 0:02:59.4]} 9. e3 {[%clk 0:03:00.8]} 9... h4
{[%clk 0:02:58.8]} 10. Ne2 {[%clk 0:03:00.8]} 10... Nc6 {[%clk 0:02:59.3]} 11.
d4 {[%clk 0:02:58.7]} 11... Qf6 {[%clk 0:02:54.4]} 12. h3 {[%clk 0:02:50.9]}
12... Bf5 {[%clk 0:02:39.9]} 13. Nc3 {[%clk 0:02:49.8]} 13... Qg6 {[%clk
0:02:37.7]} 14. Qa4 {[%clk 0:02:33.7]} 14... O-O-O {[%clk 0:02:31.1]} 15. Bd2
{[%clk 0:02:21.7]} 15... Nb4 {[%clk 0:02:06.7]} 16. Qxa7 {[%clk 0:02:05.5]}
16... Nc2+ {[%clk 0:02:04.3]} 17. Kd1 {[%clk 0:02:05.8]} 17... Nxa1 {[%clk
0:01:58.9]} 18. Qa8+ {[%clk 0:02:05.8]} 18... Kd7 {[%clk 0:01:50.7]} 19. Qxb7+
{[%clk 0:02:04.8]} 19... Ke8 {[%clk 0:01:46.3]} 20. Bb5+ {[%clk 0:02:04.1]}
20... Bd7 {[%clk 0:01:45.7]} 21. Nxd5 {[%clk 0:01:17.3]} 21... Bd6 {[%clk
0:01:12.2]} 22. Bxd7+ {[%clk 0:01:01]} 22... Rxd7 {[%clk 0:01:11.7]} 23. Qa8+
{[%clk 0:01:01.3]} 23... Rd8 {[%clk 0:01:08.5]} 24. Qc6+ {[%clk 0:01:01.8]}
24... Kf8 {[%clk 0:01:07.5]} 25. Ba5 {[%clk 0:00:54.8]} 25... Qb1+ {[%clk
0:01:02.6]} 26. Ke2 {[%clk 0:00:52.4]} 26... Qxb2+ {[%clk 0:00:54.4]} 27. Kf3
{[%clk 0:00:47.2]} 27... Rb8 {[%clk 0:00:28.7]} 28. Qxd6+ {[%clk 0:00:45]} 28...
Kg8 {[%clk 0:00:29.3]} 29. Rxa1 {[%clk 0:00:37.2]} 29... Rh6 {[%clk 0:00:27.3]}
30. Qc7 {[%clk 0:00:25.6]} 30... Rb5 {[%clk 0:00:25.4]} 31. Ne7+ {[%clk
0:00:22.1]} 31... Kh7 {[%clk 0:00:25.3]} 32. Bc3 {[%clk 0:00:21.9]} 32... Rf6+
{[%clk 0:00:22.3]} 33. Ke4 {[%clk 0:00:21.9]} 33... Qc2# {[%clk 0:00:21.6]} 0-1

[Event "Late-Titled-Tuesday-Blitz-June-04-2024"]
[Site "Chess.com"]
[Date "2024.06.04"]
[Round "5"]
[White "AustinThomas12345"]
[Black "AradNazari"]
[Result "1/2-1/2"]
[WhiteElo "2480"]
[BlackElo "2719"]
[TimeControl "180+1"]
[EndTime "14:54:33 PDT"]
[Termination "Game drawn - insufficient material"]

1. e4 {[%clk 0:03:00.9]} 1... f5 {[%clk 0:02:57.9]} 2. exf5 {[%clk 0:03:00.5]}
2... d5 {[%clk 0:02:57.5]} 3. d4 {[%clk 0:02:58.6]} 3... Bxf5 {[%clk 0:02:56.3]}
4. Bd3 {[%clk 0:02:59]} 4... Bxd3 {[%clk 0:02:55.4]} 5. Qxd3 {[%clk 0:02:59.9]}
5... Nf6 {[%clk 0:02:55.7]} 6. Nf3 {[%clk 0:02:58.7]} 6... Nc6 {[%clk
0:02:56.2]} 7. Bf4 {[%clk 0:02:56.5]} 7... Qd7 {[%clk 0:02:56.4]} 8. O-O {[%clk
0:02:53.3]} 8... O-O-O {[%clk 0:02:55.9]} 9. Ne5 {[%clk 0:02:47.7]} 9... Nxe5
{[%clk 0:02:54.7]} 10. Bxe5 {[%clk 0:02:48.6]} 10... g5 {[%clk 0:02:51.6]} 11.
Nd2 {[%clk 0:02:41.5]} 11... Bg7 {[%clk 0:02:50.8]} 12. c4 {[%clk 0:02:35.7]}
12... dxc4 {[%clk 0:02:50.1]} 13. Nxc4 {[%clk 0:02:35.8]} 13... Ne8 {[%clk
0:02:46.8]} 14. Qa3 {[%clk 0:02:10.8]} 14... Kb8 {[%clk 0:02:44.4]} 15. Rfd1
{[%clk 0:02:01.2]} 15... Rg8 {[%clk 0:02:42.9]} 16. Rac1 {[%clk 0:02:00.5]}
16... Nd6 {[%clk 0:02:42.1]} 17. Bxg7 {[%clk 0:01:48.1]} 17... Nxc4 {[%clk
0:02:38.7]} 18. Rxc4 {[%clk 0:01:46.7]} 18... Rxg7 {[%clk 0:02:39.1]} 19. Rdc1
{[%clk 0:01:44.9]} 19... e5 {[%clk 0:02:36.1]} 20. Ra4 {[%clk 0:01:08.5]} 20...
a6 {[%clk 0:02:30.3]} 21. Rb4 {[%clk 0:01:08.5]} 21... Rg6 {[%clk 0:02:27.4]}
22. Qb3 {[%clk 0:01:06.5]} 22... Qd5 {[%clk 0:02:20.6]} 23. dxe5 {[%clk
0:01:03]} 23... Qxb3 {[%clk 0:02:17]} 24. Rxb3 {[%clk 0:01:03.9]} 24... Re6
{[%clk 0:02:17.1]} 25. Re3 {[%clk 0:00:55.9]} 25... Rd2 {[%clk 0:02:17.5]} 26.
Rb1 {[%clk 0:00:55.1]} 26... c5 {[%clk 0:02:17.3]} 27. Kf1 {[%clk 0:00:54]}
27... Kc7 {[%clk 0:02:17.9]} 28. Ke1 {[%clk 0:00:53.8]} 28... Rd5 {[%clk
0:02:18.4]} 29. Ke2 {[%clk 0:00:44]} 29... Rdxe5 {[%clk 0:02:18.6]} 30. Rxe5
{[%clk 0:00:44.9]} 30... Rxe5+ {[%clk 0:02:19.5]} 31. Kd3 {[%clk 0:00:45.6]}
31... Kc6 {[%clk 0:02:19.3]} 32. b3 {[%clk 0:00:44.1]} 32... b5 {[%clk
0:02:19.7]} 33. Rc1 {[%clk 0:00:43.4]} 33... Rd5+ {[%clk 0:02:19.4]} 34. Ke3
{[%clk 0:00:43.2]} 34... h6 {[%clk 0:02:17.9]} 35. g3 {[%clk 0:00:43.6]} 35...
a5 {[%clk 0:02:18.1]} 36. f4 {[%clk 0:00:43.8]} 36... b4 {[%clk 0:02:15.1]} 37.
fxg5 {[%clk 0:00:40.5]} 37... hxg5 {[%clk 0:02:15.1]} 38. h4 {[%clk 0:00:39.9]}
38... gxh4 {[%clk 0:02:14]} 39. gxh4 {[%clk 0:00:40.8]} 39... Rh5 {[%clk
0:02:11.5]} 40. Rc4 {[%clk 0:00:40.6]} 40... Kb5 {[%clk 0:02:09.6]} 41. Kf3
{[%clk 0:00:40]} 41... a4 {[%clk 0:02:10]} 42. Kg4 {[%clk 0:00:39.6]} 42... Rd5
{[%clk 0:02:09.4]} 43. Rc2 {[%clk 0:00:29.8]} 43... Rd3 {[%clk 0:01:49.9]} 44.
bxa4+ {[%clk 0:00:27.8]} 44... Kc6 {[%clk 0:01:46.8]} 45. h5 {[%clk 0:00:24.9]}
45... Ra3 {[%clk 0:01:43.8]} 46. h6 {[%clk 0:00:23]} 46... Rxa4 {[%clk
0:01:44.2]} 47. Kg5 {[%clk 0:00:19.2]} 47... Kb5 {[%clk 0:01:43.1]} 48. h7
{[%clk 0:00:18.5]} 48... Ra8 {[%clk 0:01:42.9]} 49. Rg2 {[%clk 0:00:17.7]} 49...
Rh8 {[%clk 0:01:35.7]} 50. Kg6 {[%clk 0:00:16.6]} 50... c4 {[%clk 0:01:36]} 51.
Kg7 {[%clk 0:00:14.3]} 51... Rc8 {[%clk 0:01:36]} 52. h8=Q {[%clk 0:00:14.3]}
52... Rxh8 {[%clk 0:01:36]} 53. Kxh8 {[%clk 0:00:15.2]} 53... Ka4 {[%clk
0:01:36.4]} 54. Rc2 {[%clk 0:00:12.1]} 54... c3 {[%clk 0:01:30.7]} 55. Kg7
{[%clk 0:00:12.2]} 55... b3 {[%clk 0:01:31.2]} 56. axb3+ {[%clk 0:00:07.6]}
56... Kxb3 {[%clk 0:01:32.1]} 57. Rxc3+ {[%clk 0:00:07]} 57... Kxc3 {[%clk
0:01:32.8]} 1/2-1/2

[Event "Late-Titled-Tuesday-Blitz-June-04-2024"]
[Site "Chess.com"]
[Date "2024.06.04"]
[Round "5"]
[White "Josetricks"]
[Black "Meri-Arabidze"]
[Result "0-1"]
[WhiteElo "2431"]
[BlackElo "2688"]
[TimeControl "180+1"]
[EndTime "14:54:36 PDT"]
[Termination "Meri-Arabidze won on time"]

1. e4 {[%clk 0:03:00.9]} 1... c5 {[%clk 0:02:59.8]} 2. c3 {[%clk 0:02:59.9]}
2... d5 {[%clk 0:02:57.7]} 3. exd5 {[%clk 0:02:59.3]} 3... Nf6 {[%clk
0:02:58.2]} 4. Nf3 {[%clk 0:02:56.1]} 4... Nxd5 {[%clk 0:02:57.9]} 5. d4 {[%clk
0:02:56.7]} 5... e6 {[%clk 0:02:57.3]} 6. Bd3 {[%clk 0:02:54.5]} 6... cxd4
{[%clk 0:02:55.1]} 7. cxd4 {[%clk 0:02:54.1]} 7... Be7 {[%clk 0:02:51.6]} 8. O-O
{[%clk 0:02:53.8]} 8... O-O {[%clk 0:02:51.5]} 9. Nc3 {[%clk 0:02:54.3]} 9...
Nc6 {[%clk 0:02:39.2]} 10. h3 {[%clk 0:02:47.6]} 10... b6 {[%clk 0:02:36.5]} 11.
Re1 {[%clk 0:02:42.6]} 11... Bb7 {[%clk 0:02:22.8]} 12. a3 {[%clk 0:02:10]}
12... Nxc3 {[%clk 0:02:11]} 13. bxc3 {[%clk 0:02:09.8]} 13... Rc8 {[%clk
0:02:11.5]} 14. Bc2 {[%clk 0:02:02.1]} 14... Bf6 {[%clk 0:02:09.6]} 15. Qd3
{[%clk 0:01:59.6]} 15... g6 {[%clk 0:02:09.9]} 16. Bf4 {[%clk 0:02:00]} 16...
Na5 {[%clk 0:01:58.1]} 17. Ne5 {[%clk 0:01:54.7]} 17... Bg7 {[%clk 0:01:56.5]}
18. Bd1 {[%clk 0:01:16.4]} 18... Bd5 {[%clk 0:01:47.4]} 19. Bf3 {[%clk
0:01:14.6]} 19... Nc4 {[%clk 0:01:36.6]} 20. Nxc4 {[%clk 0:01:11.6]} 20... Bxc4
{[%clk 0:01:36.5]} 21. Qd2 {[%clk 0:01:10.5]} 21... Bd5 {[%clk 0:01:35.9]} 22.
Qd3 {[%clk 0:00:57.3]} 22... Qd7 {[%clk 0:01:32.1]} 23. Rac1 {[%clk 0:00:54.7]}
23... Rc4 {[%clk 0:01:29.3]} 24. Be5 {[%clk 0:00:51.4]} 24... Rfc8 {[%clk
0:01:26.6]} 25. Bxg7 {[%clk 0:00:46.5]} 25... Kxg7 {[%clk 0:01:27.5]} 26. Qe3
{[%clk 0:00:25.4]} 26... Bxf3 {[%clk 0:01:23.9]} 27. Qxf3 {[%clk 0:00:26.1]}
27... Qd6 {[%clk 0:01:13.3]} 28. a4 {[%clk 0:00:19.1]} 28... Rxa4 {[%clk
0:01:08.1]} 29. Ra1 {[%clk 0:00:16.1]} 29... Rxa1 {[%clk 0:00:59.1]} 30. Rxa1
{[%clk 0:00:17]} 30... Rc7 {[%clk 0:00:58.9]} 31. Qd3 {[%clk 0:00:16.1]} 31...
Qc6 {[%clk 0:00:53.8]} 32. h4 {[%clk 0:00:11.8]} 32... h5 {[%clk 0:00:50.5]} 33.
g3 {[%clk 0:00:11.2]} 33... a5 {[%clk 0:00:50.1]} 34. Rb1 {[%clk 0:00:03.9]}
34... Qxc3 {[%clk 0:00:41.8]} 35. Qxc3 {[%clk 0:00:02.7]} 35... Rxc3 {[%clk
0:00:42.7]} 36. Rxb6 {[%clk 0:00:03.1]} 36... Rc4 {[%clk 0:00:43.3]} 0-1